[Event "GrandPrix_30.05"]
[Site "Chess.com"]
[Date "2020.05.30"]
[Round "2"]
[White "hypert"]
[Black "ninullia"]
[Result "1-0"]
[WhiteElo "2202"]
[BlackElo "2280"]
[TimeControl "600+2"]
[EndTime "8:53:15 PDT"]
[Termination "hypert won on time"]

1. e4 {[%clk 0:09:49.5]} 1... e5 {[%clk 0:09:06]} 2. Nf3 {[%clk 0:09:48.7]} 2...
Nc6 {[%clk 0:09:06]} 3. Nc3 {[%clk 0:09:49.8]} 3... Nf6 {[%clk 0:09:06.5]} 4. d4
{[%clk 0:09:50.9]} 4... exd4 {[%clk 0:09:07.4]} 5. Nxd4 {[%clk 0:09:52.8]} 5...
Bb4 {[%clk 0:09:08.1]} 6. Nxc6 {[%clk 0:09:53.6]} 6... bxc6 {[%clk 0:09:10]} 7.
Bd3 {[%clk 0:09:54.8]} 7... d5 {[%clk 0:09:10.5]} 8. Bd2 {[%clk 0:09:52.1]} 8...
O-O {[%clk 0:09:09.1]} 9. O-O {[%clk 0:09:53]} 9... Bxc3 {[%clk 0:08:15]} 10.
Bxc3 {[%clk 0:09:50.5]} 10... Nxe4 {[%clk 0:08:15.3]} 11. Bxe4 {[%clk
0:09:50.9]} 11... dxe4 {[%clk 0:08:15.8]} 12. Re1 {[%clk 0:09:52.5]} 12... Qxd1
{[%clk 0:06:58.8]} 13. Raxd1 {[%clk 0:09:54.4]} 13... Bf5 {[%clk 0:07:00]} 14.
Rd4 {[%clk 0:09:54.3]} 14... Rfd8 {[%clk 0:06:52.4]} 15. Rc4 {[%clk 0:09:53.6]}
15... Rd6 {[%clk 0:06:08.5]} 16. Be5 {[%clk 0:09:45.8]} 16... Rd5 {[%clk
0:05:44.9]} 17. Bxc7 {[%clk 0:09:35.6]} 17... Rc8 {[%clk 0:05:45.6]} 18. Bf4
{[%clk 0:09:23.8]} 18... f6 {[%clk 0:05:39.7]} 19. h3 {[%clk 0:08:56.3]} 19...
h5 {[%clk 0:05:26.2]} 20. Be3 {[%clk 0:08:48.1]} 20... Ra5 {[%clk 0:05:15.2]}
21. a4 {[%clk 0:08:35]} 21... Kf7 {[%clk 0:05:03]} 22. Rd1 {[%clk 0:08:08.2]}
22... Ke6 {[%clk 0:04:01.7]} 23. Bc5 {[%clk 0:07:07.6]} 23... Kf7 {[%clk
0:03:27.8]} 24. Ra1 {[%clk 0:06:24.4]} 24... Be6 {[%clk 0:03:06.4]} 25. Rc3
{[%clk 0:06:21.5]} 25... Rd8 {[%clk 0:02:59.1]} 26. b4 {[%clk 0:06:16.2]} 26...
Ra6 {[%clk 0:03:00.1]} 27. a5 {[%clk 0:06:13.5]} 27... f5 {[%clk 0:02:21.8]} 28.
Re1 {[%clk 0:05:27.6]} 28... Rd2 {[%clk 0:02:15.7]} 29. Be3 {[%clk 0:04:59.3]}
29... Rd5 {[%clk 0:01:59.7]} 30. Rc5 {[%clk 0:04:57.8]} 30... f4 {[%clk
0:01:34.2]} 31. Rxd5 {[%clk 0:04:15.5]} 31... cxd5 {[%clk 0:01:36.1]} 32. Bxf4
{[%clk 0:04:12.9]} 32... Rc6 {[%clk 0:01:34.3]} 33. b5 {[%clk 0:03:19.5]} 33...
Rxc2 {[%clk 0:01:34.6]} 34. Rb1 {[%clk 0:03:10.5]} 34... Bc8 {[%clk 0:00:57.9]}
35. Be3 {[%clk 0:02:50.3]} 35... a6 {[%clk 0:00:32.6]} 36. bxa6 {[%clk
0:02:52.2]} 36... Bxa6 {[%clk 0:00:24.9]} 37. Rb6 {[%clk 0:02:53.6]} 37... Bc4
{[%clk 0:00:12]} 38. a6 {[%clk 0:02:34.4]} 38... Ra2 {[%clk 0:00:10.1]} 39. Rb7+
{[%clk 0:02:35.3]} 39... Ke6 {[%clk 0:00:11.2]} 40. a7 {[%clk 0:02:36.8]} 40...
d4 {[%clk 0:00:10.7]} 41. Bxd4 {[%clk 0:02:36.1]} 41... g6 {[%clk 0:00:03.6]}
42. Rb6+ {[%clk 0:02:06.5]} 42... Kf5 {[%clk 0:00:02.6]} 43. Rf6+ {[%clk
0:02:04.3]} 43... Kg5 {[%clk 0:00:03.4]} 44. Rf8 {[%clk 0:01:58.4]} 44... Bd5
{[%clk 0:00:03.8]} 45. Be3+ {[%clk 0:01:50.1]} 45... Kh4 {[%clk 0:00:05]} 46.
Kh2 {[%clk 0:01:39.6]} 1-0

[Event "GrandPrix_30.05"]
[Site "Chess.com"]
[Date "2020.05.30"]
[Round "2"]
[White "MiroVlasenko"]
[Black "LuckyLuka04"]
[Result "0-1"]
[WhiteElo "2388"]
[BlackElo "2180"]
[TimeControl "600+2"]
[EndTime "8:53:21 PDT"]
[Termination "LuckyLuka04 won by checkmate"]

1. d4 {[%clk 0:10:01.9]} 1... Nf6 {[%clk 0:10:00.9]} 2. Bg5 {[%clk 0:10:02]}
2... e6 {[%clk 0:10:01.3]} 3. Nf3 {[%clk 0:10:02.1]} 3... d5 {[%clk 0:09:59.2]}
4. e3 {[%clk 0:10:01.3]} 4... Be7 {[%clk 0:09:59.7]} 5. Nbd2 {[%clk 0:10:01.8]}
5... c5 {[%clk 0:10:00.9]} 6. c3 {[%clk 0:10:02.5]} 6... Nbd7 {[%clk 0:10:01.5]}
7. Bd3 {[%clk 0:10:02.9]} 7... O-O {[%clk 0:10:02.1]} 8. O-O {[%clk 0:09:58.6]}
8... b6 {[%clk 0:10:02.6]} 9. Ne5 {[%clk 0:09:53.9]} 9... Nxe5 {[%clk
0:09:59.3]} 10. dxe5 {[%clk 0:09:54.4]} 10... Nd7 {[%clk 0:09:59.5]} 11. Bf4
{[%clk 0:09:55.2]} 11... Bb7 {[%clk 0:09:54.7]} 12. Qh5 {[%clk 0:09:36.7]} 12...
g6 {[%clk 0:09:53.3]} 13. Qh6 {[%clk 0:09:34.5]} 13... Re8 {[%clk 0:09:52.7]}
14. Nf3 {[%clk 0:09:17.4]} 14... Bf8 {[%clk 0:09:35]} 15. Qh3 {[%clk 0:09:15.1]}
15... Bg7 {[%clk 0:09:34.1]} 16. Rad1 {[%clk 0:08:01.1]} 16... Qc7 {[%clk
0:09:25]} 17. Qg3 {[%clk 0:07:10.9]} 17... Bc6 {[%clk 0:08:42]} 18. h4 {[%clk
0:06:59.8]} 18... b5 {[%clk 0:07:54.4]} 19. h5 {[%clk 0:06:42.1]} 19... a5
{[%clk 0:07:44.1]} 20. a3 {[%clk 0:05:55.7]} 20... b4 {[%clk 0:07:30.7]} 21.
axb4 {[%clk 0:05:54.4]} 21... axb4 {[%clk 0:07:32.6]} 22. cxb4 {[%clk
0:05:55.2]} 22... c4 {[%clk 0:07:10.1]} 23. Bb1 {[%clk 0:05:23.9]} 23... Ba4
{[%clk 0:06:42.1]} 24. Rd2 {[%clk 0:05:07]} 24... Reb8 {[%clk 0:05:20.4]} 25.
hxg6 {[%clk 0:04:08.5]} 25... hxg6 {[%clk 0:05:18.6]} 26. e4 {[%clk 0:03:05.9]}
26... d4 {[%clk 0:03:36.2]} 27. Rxd4 {[%clk 0:02:22.3]} 27... Rxb4 {[%clk
0:03:34.9]} 28. Qh2 {[%clk 0:02:23.2]} 28... Rxb2 {[%clk 0:03:21.2]} 29. Rxd7
{[%clk 0:01:20.4]} 29... Qxd7 {[%clk 0:02:59.9]} 30. Bh6 {[%clk 0:01:04.1]}
30... Bh8 {[%clk 0:00:24.7]} 31. Ng5 {[%clk 0:01:01.1]} 31... Qe7 {[%clk
0:00:15.9]} 32. f4 {[%clk 0:01:01.5]} 32... f6 {[%clk 0:00:10]} 33. exf6 {[%clk
0:01:01.8]} 33... Bxf6 {[%clk 0:00:11.2]} 34. e5 {[%clk 0:01:03.3]} 34... Bxg5
{[%clk 0:00:10.5]} 35. Bxg5 {[%clk 0:01:04.1]} 35... Qh7 {[%clk 0:00:12]} 36.
Qg3 {[%clk 0:01:04.4]} 36... Bc6 {[%clk 0:00:07.7]} 37. Rf3 {[%clk 0:00:51.5]}
37... Rxb1+ {[%clk 0:00:07.9]} 38. Kf2 {[%clk 0:00:52.6]} 38... Ra2+ {[%clk
0:00:07.8]} 39. Ke3 {[%clk 0:00:53.8]} 39... Qa7# {[%clk 0:00:08.3]} 0-1

[Event "GrandPrix_30.05"]
[Site "Chess.com"]
[Date "2020.05.30"]
[Round "2"]
[White "PotapovaM"]
[Black "IwkooO"]
[Result "1-0"]
[WhiteElo "2176"]
[BlackElo "2353"]
[TimeControl "600+2"]
[EndTime "8:53:35 PDT"]
[Termination "PotapovaM won by resignation"]

1. d4 {[%clk 0:10:01.9]} 1... Nf6 {[%clk 0:09:59.7]} 2. c4 {[%clk 0:10:02.1]}
2... e6 {[%clk 0:10:01.1]} 3. Nf3 {[%clk 0:10:01.7]} 3... c5 {[%clk 0:09:55.2]}
4. d5 {[%clk 0:10:00.3]} 4... b5 {[%clk 0:09:56.3]} 5. Bg5 {[%clk 0:09:46.3]}
5... exd5 {[%clk 0:09:54.4]} 6. cxd5 {[%clk 0:09:41.2]} 6... h6 {[%clk
0:09:54.5]} 7. Bf4 {[%clk 0:09:26.6]} 7... d6 {[%clk 0:08:54.6]} 8. e3 {[%clk
0:09:11.2]} 8... Qb6 {[%clk 0:08:09]} 9. a4 {[%clk 0:09:02.1]} 9... bxa4 {[%clk
0:08:08.6]} 10. Qxa4+ {[%clk 0:08:43.7]} 10... Bd7 {[%clk 0:08:00.2]} 11. Qc2
{[%clk 0:08:44.6]} 11... Nxd5 {[%clk 0:07:52.3]} 12. Bc4 {[%clk 0:08:19]} 12...
Nf6 {[%clk 0:05:55.6]} 13. Nc3 {[%clk 0:08:09.1]} 13... Be7 {[%clk 0:05:34.5]}
14. O-O {[%clk 0:08:08.8]} 14... Nc6 {[%clk 0:05:34.5]} 15. Rfd1 {[%clk
0:07:36.5]} 15... Nb4 {[%clk 0:04:37.7]} 16. Qd2 {[%clk 0:07:27]} 16... Bc6
{[%clk 0:04:34.6]} 17. e4 {[%clk 0:04:01.3]} 17... O-O {[%clk 0:02:41.3]} 18.
Bxh6 {[%clk 0:03:39.2]} 18... Nxe4 {[%clk 0:01:58.8]} 19. Qf4 {[%clk 0:02:59.5]}
19... d5 {[%clk 0:00:27.3]} 20. Nxe4 {[%clk 0:01:33.3]} 20... dxe4 {[%clk
0:00:23.1]} 21. Ne5 {[%clk 0:01:34.2]} 21... Bf6 {[%clk 0:00:16.9]} 22. Ng4
{[%clk 0:00:54.4]} 22... Bxb2 {[%clk 0:00:17.3]} 23. Rab1 {[%clk 0:00:55.7]}
23... Ba4 {[%clk 0:00:12.2]} 24. Rd6 {[%clk 0:00:49.6]} 24... Qxd6 {[%clk
0:00:13.2]} 25. Qxd6 {[%clk 0:00:50]} 25... Bd4 {[%clk 0:00:11.5]} 26. Qg3
{[%clk 0:00:45.8]} 26... gxh6 {[%clk 0:00:11.6]} 27. Qh4 {[%clk 0:00:31.9]}
27... Bg7 {[%clk 0:00:11.1]} 28. Nxh6+ {[%clk 0:00:29.2]} 28... Bxh6 {[%clk
0:00:12.5]} 29. Qxh6 {[%clk 0:00:31.1]} 29... Rad8 {[%clk 0:00:13.8]} 30. h4
{[%clk 0:00:27.8]} 30... Nd3 {[%clk 0:00:12.2]} 31. Rb7 {[%clk 0:00:25.1]} 31...
Bd1 {[%clk 0:00:06.1]} 32. Bxf7+ {[%clk 0:00:17.2]} 32... Rxf7 {[%clk 0:00:06]}
33. Qg6+ {[%clk 0:00:18.6]} 33... Kh8 {[%clk 0:00:07.9]} 34. Qxf7 {[%clk
0:00:19.6]} 1-0

[Event "GrandPrix_30.05"]
[Site "Chess.com"]
[Date "2020.05.30"]
[Round "2"]
[White "BlackBoarder"]
[Black "Kezin_Roman"]
[Result "0-1"]
[WhiteElo "2154"]
[BlackElo "2517"]
[TimeControl "600+2"]
[EndTime "8:53:36 PDT"]
[Termination "Kezin_Roman won on time"]

1. e4 {[%clk 0:10:00.8]} 1... c5 {[%clk 0:10:01.1]} 2. Nf3 {[%clk 0:10:00.5]}
2... e6 {[%clk 0:10:02.1]} 3. c3 {[%clk 0:10:00.7]} 3... d5 {[%clk 0:10:02.4]}
4. exd5 {[%clk 0:10:01.3]} 4... exd5 {[%clk 0:10:04.3]} 5. d4 {[%clk 0:10:01.8]}
5... Nc6 {[%clk 0:10:05.5]} 6. Bb5 {[%clk 0:10:02.2]} 6... Bd6 {[%clk
0:10:06.2]} 7. O-O {[%clk 0:09:57.8]} 7... Nf6 {[%clk 0:10:06.7]} 8. Re1+ {[%clk
0:09:55.5]} 8... Be6 {[%clk 0:10:05.9]} 9. dxc5 {[%clk 0:09:41.8]} 9... Bxc5
{[%clk 0:10:05.1]} 10. Be3 {[%clk 0:09:39.2]} 10... Bxe3 {[%clk 0:10:03]} 11.
Rxe3 {[%clk 0:09:36.6]} 11... O-O {[%clk 0:10:03.8]} 12. Nd4 {[%clk 0:08:54.5]}
12... Qb6 {[%clk 0:09:55.5]} 13. Bxc6 {[%clk 0:08:50.3]} 13... bxc6 {[%clk
0:09:44.7]} 14. Qb3 {[%clk 0:08:46.7]} 14... Qc7 {[%clk 0:09:07.4]} 15. Nd2
{[%clk 0:08:31.7]} 15... Ng4 {[%clk 0:08:52.2]} 16. Rg3 {[%clk 0:08:28.7]} 16...
Bd7 {[%clk 0:07:59.1]} 17. h3 {[%clk 0:08:03.1]} 17... Nf6 {[%clk 0:07:44.9]}
18. Re1 {[%clk 0:07:24.1]} 18... c5 {[%clk 0:07:38.7]} 19. Nc2 {[%clk
0:06:58.7]} 19... Be6 {[%clk 0:07:04.9]} 20. Qa4 {[%clk 0:06:39.2]} 20... Rab8
{[%clk 0:06:05]} 21. b3 {[%clk 0:06:21.7]} 21... Bf5 {[%clk 0:05:45.2]} 22. Ne3
{[%clk 0:06:08.9]} 22... Bg6 {[%clk 0:05:45.7]} 23. Ng4 {[%clk 0:05:07.3]} 23...
Ne4 {[%clk 0:05:45.2]} 24. Nxe4 {[%clk 0:05:01.2]} 24... dxe4 {[%clk 0:05:47.1]}
25. Ne3 {[%clk 0:03:22.9]} 25... f5 {[%clk 0:05:45.7]} 26. Nd5 {[%clk
0:03:11.1]} 26... Qd6 {[%clk 0:05:19.5]} 27. c4 {[%clk 0:03:04.5]} 27... f4
{[%clk 0:05:15.5]} 28. Rg4 {[%clk 0:02:50.3]} 28... Rb7 {[%clk 0:05:03.6]} 29.
Qa5 {[%clk 0:02:14.5]} 29... Rbf7 {[%clk 0:04:14.6]} 30. Qd2 {[%clk 0:01:46.4]}
30... Kh8 {[%clk 0:03:33.5]} 31. Qc3 {[%clk 0:00:37.9]} 31... h6 {[%clk
0:03:29.5]} 32. b4 {[%clk 0:00:26.4]} 32... Kh7 {[%clk 0:03:18.5]} 33. bxc5
{[%clk 0:00:24.8]} 33... Qxc5 {[%clk 0:03:20.4]} 34. Qe5 {[%clk 0:00:17.9]}
34... Qxc4 {[%clk 0:01:46.8]} 35. Nxf4 {[%clk 0:00:17.9]} 35... Bf5 {[%clk
0:01:39.8]} 36. Rg3 {[%clk 0:00:16.2]} 36... Qxa2 {[%clk 0:01:40.1]} 37. Nh5
{[%clk 0:00:13.8]} 37... Bg6 {[%clk 0:01:28.1]} 38. Kh2 {[%clk 0:00:10.8]} 38...
Qxf2 {[%clk 0:01:14.6]} 39. Ree3 {[%clk 0:00:08.4]} 39... Qf5 {[%clk 0:01:08.6]}
40. Qxf5 {[%clk 0:00:04.9]} 40... Rxf5 {[%clk 0:01:10.5]} 41. Nxg7 {[%clk
0:00:02.6]} 41... Kxg7 {[%clk 0:01:12.4]} 42. Rxe4 {[%clk 0:00:04.1]} 42... Rg5
{[%clk 0:01:09.1]} 43. Ra3 {[%clk 0:00:03.7]} 43... Bxe4 {[%clk 0:01:08.9]} 0-1

[Event "GrandPrix_30.05"]
[Site "Chess.com"]
[Date "2020.05.30"]
[Round "2"]
[White "tsvet2005"]
[Black "fujiwara_hoga"]
[Result "0-1"]
[WhiteElo "2222"]
[BlackElo "2146"]
[TimeControl "600+2"]
[EndTime "8:53:37 PDT"]
[Termination "fujiwara_hoga won by resignation"]

1. d4 {[%clk 0:10:01.9]} 1... d5 {[%clk 0:09:55.7]} 2. c4 {[%clk 0:10:03.3]}
2... e6 {[%clk 0:09:55.6]} 3. Nc3 {[%clk 0:10:04.2]} 3... Nf6 {[%clk 0:09:55.5]}
4. cxd5 {[%clk 0:10:05.4]} 4... exd5 {[%clk 0:09:57.4]} 5. Bg5 {[%clk
0:10:05.3]} 5... Be7 {[%clk 0:09:57.8]} 6. e3 {[%clk 0:10:06.6]} 6... O-O {[%clk
0:09:58.1]} 7. Bd3 {[%clk 0:10:07.7]} 7... Nbd7 {[%clk 0:09:58]} 8. Qc2 {[%clk
0:10:08.9]} 8... c6 {[%clk 0:09:58.1]} 9. Nge2 {[%clk 0:10:09.3]} 9... Re8
{[%clk 0:09:56.1]} 10. O-O {[%clk 0:10:10.4]} 10... Nf8 {[%clk 0:09:57]} 11.
Rad1 {[%clk 0:10:10.3]} 11... g6 {[%clk 0:09:47.9]} 12. f3 {[%clk 0:10:05.9]}
12... Ne6 {[%clk 0:09:47]} 13. Bh4 {[%clk 0:10:07.1]} 13... b5 {[%clk
0:09:41.7]} 14. Kh1 {[%clk 0:09:52.1]} 14... Bb7 {[%clk 0:09:25.6]} 15. e4
{[%clk 0:09:36.5]} 15... dxe4 {[%clk 0:09:23.2]} 16. fxe4 {[%clk 0:09:38.4]}
16... Ng4 {[%clk 0:09:13.5]} 17. Bxe7 {[%clk 0:09:26.4]} 17... Qxe7 {[%clk
0:09:13.5]} 18. Qc1 {[%clk 0:09:08.8]} 18... b4 {[%clk 0:08:24.7]} 19. Na4
{[%clk 0:09:00.6]} 19... Qh4 {[%clk 0:08:23.3]} 20. h3 {[%clk 0:08:52]} 20...
Nf2+ {[%clk 0:08:21.5]} 21. Rxf2 {[%clk 0:08:19.1]} 21... Qxf2 {[%clk
0:08:23.4]} 22. Rf1 {[%clk 0:08:19.8]} 22... Qh4 {[%clk 0:08:20.9]} 23. Qe3
{[%clk 0:08:20.9]} 23... Rad8 {[%clk 0:08:12.7]} 24. Bc4 {[%clk 0:08:20.8]}
24... Re7 {[%clk 0:07:34.5]} 25. Rd1 {[%clk 0:07:23.9]} 25... Rde8 {[%clk
0:07:01.9]} 26. e5 {[%clk 0:07:08.5]} 26... Qg5 {[%clk 0:06:21.7]} 27. Qf2
{[%clk 0:06:56.2]} 27... Rd8 {[%clk 0:05:48.5]} 28. Bxe6 {[%clk 0:06:43]} 28...
Rxe6 {[%clk 0:04:52.6]} 29. Rf1 {[%clk 0:06:27.1]} 29... Re7 {[%clk 0:04:43.6]}
30. Nc5 {[%clk 0:06:22.8]} 30... Bc8 {[%clk 0:04:42.1]} 31. Ng3 {[%clk
0:06:05.5]} 31... Qh4 {[%clk 0:02:55.7]} 32. Nce4 {[%clk 0:05:16.3]} 32... Kh8
{[%clk 0:02:35.5]} 33. Qe3 {[%clk 0:04:51.6]} 33... Be6 {[%clk 0:02:06.8]} 34.
Nd6 {[%clk 0:04:34.6]} 34... Bxh3 {[%clk 0:01:04.3]} 35. gxh3 {[%clk 0:01:37.8]}
35... Qxh3+ {[%clk 0:01:03.2]} 36. Kg1 {[%clk 0:01:38.9]} 36... Rxd6 {[%clk
0:01:00.2]} 37. Rf3 {[%clk 0:01:40.3]} 37... Rd8 {[%clk 0:00:40.8]} 38. Ne4
{[%clk 0:01:38.1]} 38... Qg4+ {[%clk 0:00:36.1]} 39. Rg3 {[%clk 0:01:36.7]}
39... Qd1+ {[%clk 0:00:35.8]} 40. Kh2 {[%clk 0:01:34.2]} 40... Qxd4 {[%clk
0:00:31.8]} 41. Qh6 {[%clk 0:00:53]} 41... Qxe4 {[%clk 0:00:25.7]} 42. Rh3
{[%clk 0:00:52.8]} 42... Qe2+ {[%clk 0:00:22.8]} 43. Kg3 {[%clk 0:00:52.7]}
43... Rd3+ {[%clk 0:00:21.7]} 0-1

[Event "GrandPrix_30.05"]
[Site "Chess.com"]
[Date "2020.05.30"]
[Round "2"]
[White "Supernotar"]
[Black "Bacyanide"]
[Result "1/2-1/2"]
[WhiteElo "2151"]
[BlackElo "2411"]
[TimeControl "600+2"]
[EndTime "8:53:40 PDT"]
[Termination "Game drawn by agreement"]

1. d4 {[%clk 0:10:01.9]} 1... d5 {[%clk 0:10:00.5]} 2. c4 {[%clk 0:09:58.9]}
2... e6 {[%clk 0:10:00.8]} 3. Nf3 {[%clk 0:09:58.9]} 3... Nf6 {[%clk 0:10:01.8]}
4. e3 {[%clk 0:09:58.9]} 4... c5 {[%clk 0:09:52.3]} 5. dxc5 {[%clk 0:09:58.9]}
5... Bxc5 {[%clk 0:09:52.5]} 6. a3 {[%clk 0:09:59.5]} 6... a5 {[%clk 0:09:41.3]}
7. Nc3 {[%clk 0:09:58.5]} 7... O-O {[%clk 0:09:41.8]} 8. Be2 {[%clk 0:09:52]}
8... Nc6 {[%clk 0:09:40.3]} 9. O-O {[%clk 0:09:36.7]} 9... d4 {[%clk 0:09:27.2]}
10. exd4 {[%clk 0:09:36]} 10... Nxd4 {[%clk 0:09:12.9]} 11. Nxd4 {[%clk
0:09:35.5]} 11... Bxd4 {[%clk 0:09:14.2]} 12. Nb5 {[%clk 0:09:24.4]} 12... e5
{[%clk 0:09:03.8]} 13. Nxd4 {[%clk 0:09:15.3]} 13... exd4 {[%clk 0:09:04]} 14.
Bg5 {[%clk 0:09:11.4]} 14... h6 {[%clk 0:08:58.5]} 15. Bh4 {[%clk 0:09:10.8]}
15... Qb6 {[%clk 0:08:26.1]} 16. b4 {[%clk 0:08:06.7]} 16... axb4 {[%clk
0:08:10.9]} 17. axb4 {[%clk 0:08:06.2]} 17... Rxa1 {[%clk 0:08:11.2]} 18. Qxa1
{[%clk 0:08:06.1]} 18... Bf5 {[%clk 0:08:08.3]} 19. Rd1 {[%clk 0:07:29.3]} 19...
Rd8 {[%clk 0:08:03.2]} 20. Bxf6 {[%clk 0:06:58.9]} 20... Qxf6 {[%clk 0:07:46.8]}
21. Bd3 {[%clk 0:06:47.7]} 21... Bxd3 {[%clk 0:06:55]} 22. Rxd3 {[%clk
0:06:34.2]} 22... Qe6 {[%clk 0:06:55]} 23. Qc1 {[%clk 0:05:51]} 23... Qe2 {[%clk
0:05:32.2]} 24. Qd2 {[%clk 0:05:45.5]} 24... Qxd2 {[%clk 0:05:27.6]} 25. Rxd2
{[%clk 0:05:46.2]} 25... d3 {[%clk 0:05:29]} 26. f3 {[%clk 0:05:34.6]} 26... Rd4
{[%clk 0:05:29.8]} 27. c5 {[%clk 0:05:06.3]} 27... f5 {[%clk 0:05:06.9]} 28. Kf2
{[%clk 0:04:00.2]} 28... f4 {[%clk 0:05:06.8]} 29. Ke1 {[%clk 0:03:16.8]} 29...
Kf7 {[%clk 0:05:06.3]} 30. Rb2 {[%clk 0:02:19.5]} 30... Ke6 {[%clk 0:05:02]} 31.
b5 {[%clk 0:01:59.2]} 31... Rd8 {[%clk 0:03:38.3]} 32. Kd2 {[%clk 0:01:11.8]}
32... Kd5 {[%clk 0:03:29.7]} 33. c6 {[%clk 0:01:00.5]} 33... bxc6 {[%clk
0:03:30.3]} 34. bxc6 {[%clk 0:01:01.5]} 34... Kxc6 {[%clk 0:03:29.6]} 35. Rb3
{[%clk 0:00:59.5]} 35... Ra8 {[%clk 0:03:01.7]} 36. Rc3+ {[%clk 0:00:54.1]}
36... Kd5 {[%clk 0:02:58.4]} 37. Rxd3+ {[%clk 0:00:54.1]} 37... Ke5 {[%clk
0:02:59.8]} 38. Ke2 {[%clk 0:00:47.5]} 38... Ra2+ {[%clk 0:02:56.4]} 39. Kf1
{[%clk 0:00:47.7]} 39... g5 {[%clk 0:02:54.9]} 40. Rd8 {[%clk 0:00:43.9]} 40...
h5 {[%clk 0:02:49.8]} 41. h3 {[%clk 0:00:23.1]} 41... Kf6 {[%clk 0:02:38.1]} 42.
Kg1 {[%clk 0:00:21.6]} 42... g4 {[%clk 0:02:33.2]} 43. hxg4 {[%clk 0:00:20.7]}
43... hxg4 {[%clk 0:02:35.1]} 44. fxg4 {[%clk 0:00:20.9]} 44... Kg5 {[%clk
0:02:36.4]} 45. Rh8 {[%clk 0:00:16.1]} 45... Rb2 {[%clk 0:02:32.8]} 46. Rh7
{[%clk 0:00:15.9]} 46... Kxg4 {[%clk 0:02:29.1]} 47. Rg7+ {[%clk 0:00:16.6]}
47... Kf5 {[%clk 0:02:30.3]} 48. Rf7+ {[%clk 0:00:17.3]} 48... Ke4 {[%clk
0:02:31.6]} 49. Kh2 {[%clk 0:00:17.4]} 49... Rb5 {[%clk 0:02:26.7]} 50. Re7+
{[%clk 0:00:16.8]} 50... Kd3 {[%clk 0:02:19.9]} 51. Kh3 {[%clk 0:00:14.1]} 51...
Rg5 {[%clk 0:02:19.2]} 52. Re8 {[%clk 0:00:09.8]} 52... Rg3+ {[%clk 0:02:16.1]}
53. Kh2 {[%clk 0:00:10.8]} 53... Rg6 {[%clk 0:02:12.6]} 54. Kh3 {[%clk
0:00:11.3]} 54... Kd4 {[%clk 0:02:09.4]} 55. Kh2 {[%clk 0:00:09.9]} 55... Rg7
{[%clk 0:01:58.3]} 56. Kh3 {[%clk 0:00:09.3]} 56... Kd3 {[%clk 0:01:58.2]} 57.
Kh2 {[%clk 0:00:10.4]} 57... Kd4 {[%clk 0:01:56.7]} 1/2-1/2

[Event "GrandPrix_30.05"]
[Site "Chess.com"]
[Date "2020.05.30"]
[Round "2"]
[White "Tyoma88888"]
[Black "HElissalt"]
[Result "0-1"]
[WhiteElo "2142"]
[BlackElo "2048"]
[TimeControl "600+2"]
[EndTime "8:53:41 PDT"]
[Termination "HElissalt won by resignation"]

1. e4 {[%clk 0:10:01.9]} 1... d6 {[%clk 0:09:41.7]} 2. d4 {[%clk 0:10:00.9]}
2... Nf6 {[%clk 0:09:42.3]} 3. Nc3 {[%clk 0:10:02]} 3... e5 {[%clk 0:09:43.2]}
4. Nge2 {[%clk 0:10:02.4]} 4... Be7 {[%clk 0:09:37.2]} 5. g3 {[%clk 0:10:01.1]}
5... O-O {[%clk 0:09:34.6]} 6. Bg2 {[%clk 0:10:02.3]} 6... c6 {[%clk 0:09:34.7]}
7. O-O {[%clk 0:10:03.2]} 7... b5 {[%clk 0:09:25.7]} 8. a3 {[%clk 0:10:04.2]}
8... Nbd7 {[%clk 0:09:25.8]} 9. h3 {[%clk 0:10:05.2]} 9... Bb7 {[%clk
0:09:12.1]} 10. g4 {[%clk 0:10:04.6]} 10... h6 {[%clk 0:08:40.9]} 11. Ng3 {[%clk
0:10:04.1]} 11... Re8 {[%clk 0:08:34.2]} 12. Nf5 {[%clk 0:10:01.4]} 12... Bf8
{[%clk 0:08:34.5]} 13. f4 {[%clk 0:10:02.4]} 13... exd4 {[%clk 0:08:25.1]} 14.
Qxd4 {[%clk 0:09:55.3]} 14... d5 {[%clk 0:08:18.3]} 15. Kh2 {[%clk 0:09:29]}
15... dxe4 {[%clk 0:08:09.4]} 16. g5 {[%clk 0:08:46.6]} 16... hxg5 {[%clk
0:06:41.7]} 17. fxg5 {[%clk 0:08:43.8]} 17... Nd5 {[%clk 0:05:29]} 18. Nxe4
{[%clk 0:08:13.9]} 18... Qc7+ {[%clk 0:05:17.2]} 19. Kh1 {[%clk 0:08:09.9]}
19... c5 {[%clk 0:05:13]} 20. Qf2 {[%clk 0:08:06.9]} 20... Ne5 {[%clk
0:05:04.1]} 21. Qg3 {[%clk 0:07:49.7]} 21... Ng6 {[%clk 0:04:32.8]} 22. Qxc7
{[%clk 0:06:53.1]} 22... Nxc7 {[%clk 0:04:31]} 23. Nf6+ {[%clk 0:05:11.9]} 23...
gxf6 {[%clk 0:04:29.7]} 24. Bxb7 {[%clk 0:05:13.8]} 24... Rab8 {[%clk
0:04:29.3]} 25. Bc6 {[%clk 0:05:13.3]} 25... Re6 {[%clk 0:04:29.9]} 26. Bd7
{[%clk 0:05:12.5]} 26... fxg5 {[%clk 0:04:26.9]} 27. Bxe6 {[%clk 0:04:45.7]}
27... Nxe6 {[%clk 0:04:27.4]} 28. Be3 {[%clk 0:04:47.1]} 28... Ne5 {[%clk
0:04:19.1]} 29. Rad1 {[%clk 0:04:30.5]} 29... f6 {[%clk 0:04:10.6]} 30. Rd5
{[%clk 0:03:57.8]} 30... Kh7 {[%clk 0:03:59.7]} 31. Ng3 {[%clk 0:03:45.4]} 31...
Kg6 {[%clk 0:02:40.8]} 32. Ne4 {[%clk 0:03:39.8]} 32... Be7 {[%clk 0:02:41.2]}
33. Nxc5 {[%clk 0:03:24.7]} 33... Bxc5 {[%clk 0:02:32.3]} 34. Bxc5 {[%clk
0:03:23.8]} 34... Nf4 {[%clk 0:02:33.5]} 35. Rxe5 {[%clk 0:01:25.7]} 35... fxe5
{[%clk 0:02:32.3]} 36. Bxa7 {[%clk 0:01:26.8]} 36... Rh8 {[%clk 0:02:27.9]} 37.
Rf3 {[%clk 0:01:26.7]} 37... Nxh3 {[%clk 0:02:09.6]} 38. Rb3 {[%clk 0:01:11]}
38... Nf4+ {[%clk 0:02:06.7]} 39. Kg1 {[%clk 0:01:09.6]} 39... g4 {[%clk
0:02:07]} 40. Rxb5 {[%clk 0:01:02.8]} 40... Kf5 {[%clk 0:01:56.3]} 41. Bf2
{[%clk 0:00:48.3]} 41... Rd8 {[%clk 0:01:23.1]} 42. Be3 {[%clk 0:00:17.8]} 42...
Ke4 {[%clk 0:01:16.1]} 43. Bxf4 {[%clk 0:00:18]} 43... exf4 {[%clk 0:01:16.1]}
44. Rb4+ {[%clk 0:00:16.8]} 44... Ke3 {[%clk 0:01:13.3]} 45. Rb3+ {[%clk
0:00:17.6]} 45... Ke2 {[%clk 0:01:12]} 46. Rd3 {[%clk 0:00:06.8]} 46... Rxd3
{[%clk 0:01:10.2]} 47. cxd3 {[%clk 0:00:08.7]} 47... f3 {[%clk 0:01:11.5]} 0-1